[Event "Late-Titled-Tuesday-Blitz-April-23-2024"]
[Site "Chess.com"]
[Date "2024.04.23"]
[Round "3"]
[White "Gravity_Chess"]
[Black "albi1999"]
[Result "0-1"]
[WhiteElo "2865"]
[BlackElo "2669"]
[TimeControl "180+1"]
[EndTime "14:31:27 PDT"]
[Termination "albi1999 won by resignation"]

1. c4 {[%clk 0:03:00.9]} 1... Nf6 {[%clk 0:02:57.9]} 2. Nc3 {[%clk 0:03:00.7]}
2... e6 {[%clk 0:02:55.2]} 3. e4 {[%clk 0:03:00.5]} 3... c5 {[%clk 0:02:55.7]}
4. e5 {[%clk 0:02:59.4]} 4... Ng8 {[%clk 0:02:55.8]} 5. d4 {[%clk 0:03:00.3]}
5... cxd4 {[%clk 0:02:56.4]} 6. Qxd4 {[%clk 0:03:01.2]} 6... Nc6 {[%clk
0:02:56.9]} 7. Qf4 {[%clk 0:03:01.9]} 7... d6 {[%clk 0:02:53.2]} 8. Nf3 {[%clk
0:03:01.9]} 8... Nge7 {[%clk 0:02:48.4]} 9. exd6 {[%clk 0:02:56.3]} 9... Ng6
{[%clk 0:02:47.7]} 10. Qg5 {[%clk 0:02:56.9]} 10... f6 {[%clk 0:02:40.9]} 11.
Qh5 {[%clk 0:02:51.4]} 11... Qxd6 {[%clk 0:02:40.4]} 12. Be3 {[%clk 0:02:51.3]}
12... a6 {[%clk 0:02:20.1]} 13. Rd1 {[%clk 0:02:49.1]} 13... Qb4 {[%clk
0:02:19.6]} 14. Bd3 {[%clk 0:02:46.3]} 14... f5 {[%clk 0:02:14.7]} 15. O-O
{[%clk 0:02:29.6]} 15... Be7 {[%clk 0:02:13.7]} 16. a3 {[%clk 0:01:44.7]} 16...
Qxb2 {[%clk 0:02:06.6]} 17. Na4 {[%clk 0:01:44.8]} 17... Qf6 {[%clk 0:01:57.9]}
18. Nb6 {[%clk 0:01:42.2]} 18... Rb8 {[%clk 0:01:57.9]} 19. Rfe1 {[%clk
0:01:06.6]} 19... O-O {[%clk 0:01:53.9]} 20. Ng5 {[%clk 0:00:38.4]} 20... h6
{[%clk 0:01:39]} 21. Nf3 {[%clk 0:00:38.9]} 21... Qf7 {[%clk 0:01:27.1]} 22. c5
{[%clk 0:00:30]} 22... Rd8 {[%clk 0:00:38.2]} 23. Bc4 {[%clk 0:00:25.5]} 23...
Nge5 {[%clk 0:00:33.8]} 24. Qxf7+ {[%clk 0:00:25]} 24... Kxf7 {[%clk 0:00:34.7]}
25. Rxd8 {[%clk 0:00:23.5]} 25... Nxf3+ {[%clk 0:00:29.2]} 26. gxf3 {[%clk
0:00:23.4]} 26... Bxd8 {[%clk 0:00:23.1]} 27. Bf4 {[%clk 0:00:20.4]} 27... Bxb6
{[%clk 0:00:23.3]} 28. Bxb8 {[%clk 0:00:16.8]} 28... Bxc5 {[%clk 0:00:23.3]} 29.
Bf4 {[%clk 0:00:11.7]} 29... Bxa3 {[%clk 0:00:16.8]} 30. Rd1 {[%clk 0:00:11.9]}
30... Ke7 {[%clk 0:00:14.5]} 31. Be3 {[%clk 0:00:11]} 31... Bd6 {[%clk
0:00:13.7]} 32. Bb6 {[%clk 0:00:10.3]} 32... Bd7 {[%clk 0:00:12.3]} 33. h3
{[%clk 0:00:09.5]} 33... Ne5 {[%clk 0:00:12.2]} 34. Be2 {[%clk 0:00:09.9]} 34...
Bc6 {[%clk 0:00:12.6]} 35. f4 {[%clk 0:00:07.2]} 35... Nf3+ {[%clk 0:00:12.8]}
36. Bxf3 {[%clk 0:00:07.1]} 36... Bxf3 {[%clk 0:00:13.7]} 37. Rd3 {[%clk
0:00:07.6]} 37... Be4 {[%clk 0:00:13.5]} 38. Rg3 {[%clk 0:00:05.7]} 38... g5
{[%clk 0:00:12.7]} 39. Rc3 {[%clk 0:00:05.8]} 39... gxf4 {[%clk 0:00:10]} 40. f3
{[%clk 0:00:06.1]} 40... Bc6 {[%clk 0:00:09.6]} 41. Kf2 {[%clk 0:00:06.8]} 41...
e5 {[%clk 0:00:10]} 42. Rd3 {[%clk 0:00:07.1]} 42... Ke6 {[%clk 0:00:10.4]} 43.
Rc3 {[%clk 0:00:06.1]} 43... e4 {[%clk 0:00:10.7]} 44. Ba7 {[%clk 0:00:04.6]}
44... Be5 {[%clk 0:00:10.4]} 45. Rc1 {[%clk 0:00:04.3]} 45... Bf6 {[%clk
0:00:06.5]} 46. Ke2 {[%clk 0:00:03.7]} 46... exf3+ {[%clk 0:00:06.5]} 47. Kf2
{[%clk 0:00:03.9]} 47... Bh4+ {[%clk 0:00:06.7]} 48. Kg1 {[%clk 0:00:04.2]}
48... f2+ {[%clk 0:00:06.4]} 49. Bxf2 {[%clk 0:00:04]} 49... Bxf2+ {[%clk
0:00:07.3]} 50. Kxf2 {[%clk 0:00:04.9]} 50... a5 {[%clk 0:00:06.9]} 51. Rc4
{[%clk 0:00:05.1]} 51... f3 {[%clk 0:00:05.7]} 52. Ke3 {[%clk 0:00:04.8]} 52...
a4 {[%clk 0:00:05.9]} 53. Rb4 {[%clk 0:00:05.5]} 53... Kd6 {[%clk 0:00:05.7]}
54. Rf4 {[%clk 0:00:06.2]} 54... Be4 {[%clk 0:00:05.2]} 55. Rh4 {[%clk
0:00:05.9]} 55... a3 {[%clk 0:00:04.6]} 56. Rxh6+ {[%clk 0:00:06.4]} 56... Kc5
{[%clk 0:00:05.1]} 57. Rh8 {[%clk 0:00:06.9]} 57... b5 {[%clk 0:00:05.1]} 58.
Rc8+ {[%clk 0:00:07]} 58... Kb6 {[%clk 0:00:04.9]} 59. Rb8+ {[%clk 0:00:04.7]}
59... Ka5 {[%clk 0:00:04.6]} 60. Rg8 {[%clk 0:00:03]} 60... a2 {[%clk
0:00:04.5]} 61. Rg7 {[%clk 0:00:02.1]} 61... Kb4 {[%clk 0:00:03.7]} 62. Ra7
{[%clk 0:00:02.4]} 62... Kb3 {[%clk 0:00:04.1]} 63. h4 {[%clk 0:00:03.1]} 63...
Kb2 {[%clk 0:00:02.9]} 64. h5 {[%clk 0:00:03.7]} 64... a1=Q {[%clk 0:00:02.8]}
65. Rxa1 {[%clk 0:00:03.9]} 65... Kxa1 {[%clk 0:00:03.7]} 66. h6 {[%clk
0:00:04]} 66... f4+ {[%clk 0:00:04.3]} 67. Kxe4 {[%clk 0:00:04.6]} 67... f2
{[%clk 0:00:04.8]} 68. h7 {[%clk 0:00:05.3]} 68... f1=Q {[%clk 0:00:05.1]} 69.
h8=Q+ {[%clk 0:00:06.2]} 69... Kb1 {[%clk 0:00:04.3]} 70. Qb8 {[%clk 0:00:02.2]}
70... Qc4+ {[%clk 0:00:04.7]} 71. Kf3 {[%clk 0:00:02.8]} 71... b4 {[%clk
0:00:05.2]} 72. Qe5 {[%clk 0:00:01.7]} 72... Kc2 {[%clk 0:00:05]} 73. Qf6 {[%clk
0:00:00.8]} 73... Qc3+ {[%clk 0:00:04.2]} 74. Qxc3+ {[%clk 0:00:01.6]} 74...
Kxc3 {[%clk 0:00:05.1]} 75. Kxf4 {[%clk 0:00:02.5]} 75... b3 {[%clk 0:00:05.8]}
0-1

[Event "Late-Titled-Tuesday-Blitz-April-23-2024"]
[Site "Chess.com"]
[Date "2024.04.23"]
[Round "3"]
[White "LiemLe"]
[Black "Cayse"]
[Result "0-1"]
[WhiteElo "3051"]
[BlackElo "2815"]
[TimeControl "180+1"]
[EndTime "14:31:37 PDT"]
[Termination "Cayse won by checkmate"]

1. Nf3 {[%clk 0:03:00.9]} 1... d5 {[%clk 0:02:59.6]} 2. e3 {[%clk 0:03:00.1]}
2... Nf6 {[%clk 0:02:58.9]} 3. c4 {[%clk 0:02:57.5]} 3... e6 {[%clk 0:02:59.4]}
4. Nc3 {[%clk 0:02:57.6]} 4... c5 {[%clk 0:02:57.5]} 5. d4 {[%clk 0:02:57.2]}
5... cxd4 {[%clk 0:02:49.1]} 6. exd4 {[%clk 0:02:58.1]} 6... dxc4 {[%clk
0:02:47.3]} 7. Bxc4 {[%clk 0:02:58]} 7... a6 {[%clk 0:02:48]} 8. O-O {[%clk
0:02:52.5]} 8... b5 {[%clk 0:02:46.9]} 9. Bb3 {[%clk 0:02:41.7]} 9... Bb7 {[%clk
0:02:47.2]} 10. Bg5 {[%clk 0:02:38.5]} 10... Be7 {[%clk 0:02:47]} 11. d5 {[%clk
0:02:03.7]} 11... Nxd5 {[%clk 0:02:22]} 12. Bxd5 {[%clk 0:02:01.1]} 12... Bxd5
{[%clk 0:02:21.3]} 13. Bxe7 {[%clk 0:02:00.9]} 13... Kxe7 {[%clk 0:02:21.6]} 14.
Re1 {[%clk 0:01:57]} 14... Bb7 {[%clk 0:02:07.9]} 15. Qe2 {[%clk 0:01:38.5]}
15... Nd7 {[%clk 0:01:57.7]} 16. Rad1 {[%clk 0:01:27.6]} 16... Qc7 {[%clk
0:01:56.9]} 17. Ng5 {[%clk 0:01:27.2]} 17... Nf6 {[%clk 0:01:36.3]} 18. Nce4
{[%clk 0:00:49.8]} 18... Nxe4 {[%clk 0:01:13.3]} 19. Nxe4 {[%clk 0:00:49]} 19...
Rhd8 {[%clk 0:01:12.6]} 20. Rc1 {[%clk 0:00:40]} 20... Qe5 {[%clk 0:01:04.6]}
21. Qg4 {[%clk 0:00:28]} 21... Bxe4 {[%clk 0:01:01.7]} 22. Rxe4 {[%clk
0:00:28.9]} 22... Qxb2 {[%clk 0:01:01]} 23. Rc7+ {[%clk 0:00:23.3]} 23... Rd7
{[%clk 0:00:47.7]} 24. Rxd7+ {[%clk 0:00:14.1]} 24... Kxd7 {[%clk 0:00:47.5]}
25. h4 {[%clk 0:00:11.8]} 25... Ke7 {[%clk 0:00:40.3]} 26. Rd4 {[%clk
0:00:10.3]} 26... Kf8 {[%clk 0:00:33.8]} 27. Qe4 {[%clk 0:00:10.3]} 27... Rc8
{[%clk 0:00:31]} 28. Qe5 {[%clk 0:00:09.9]} 28... Qc1+ {[%clk 0:00:29]} 29. Kh2
{[%clk 0:00:08.6]} 29... Qc7 {[%clk 0:00:29.6]} 30. Rd6 {[%clk 0:00:08.9]} 30...
Ke7 {[%clk 0:00:21.4]} 31. Rd5 {[%clk 0:00:02]} 31... Qxe5+ {[%clk 0:00:20.3]}
32. Rxe5 {[%clk 0:00:02.9]} 32... Rc2 {[%clk 0:00:13.2]} 33. a4 {[%clk 0:00:03]}
33... bxa4 {[%clk 0:00:11]} 34. Ra5 {[%clk 0:00:03.9]} 34... Rxf2 {[%clk
0:00:08.8]} 35. Rxa4 {[%clk 0:00:04.4]} 35... Rd2 {[%clk 0:00:08.8]} 36. Rxa6
{[%clk 0:00:04.7]} 36... h5 {[%clk 0:00:09.4]} 37. Ra5 {[%clk 0:00:03.6]} 37...
g6 {[%clk 0:00:08.8]} 38. Kg3 {[%clk 0:00:04.1]} 38... Rd4 {[%clk 0:00:08.9]}
39. Kh3 {[%clk 0:00:03.8]} 39... Kf6 {[%clk 0:00:09.3]} 40. g3 {[%clk
0:00:04.4]} 40... e5 {[%clk 0:00:09.7]} 41. Kg2 {[%clk 0:00:04.7]} 41... Kf5
{[%clk 0:00:10.1]} 42. Kf3 {[%clk 0:00:05]} 42... f6 {[%clk 0:00:10.6]} 43. Ra3
{[%clk 0:00:04.6]} 43... e4+ {[%clk 0:00:10.2]} 44. Kf2 {[%clk 0:00:04.1]} 44...
Rd2+ {[%clk 0:00:10.3]} 45. Kg1 {[%clk 0:00:03.4]} 45... Rd3 {[%clk 0:00:10.8]}
46. Ra6 {[%clk 0:00:02.3]} 46... Rxg3+ {[%clk 0:00:10.1]} 47. Kf2 {[%clk
0:00:03]} 47... Rf3+ {[%clk 0:00:10.4]} 48. Kg2 {[%clk 0:00:03.4]} 48... Rd3
{[%clk 0:00:10.6]} 49. Ra5+ {[%clk 0:00:03.2]} 49... Kf4 {[%clk 0:00:10.5]} 50.
Ra6 {[%clk 0:00:04.1]} 50... Rd2+ {[%clk 0:00:09.7]} 51. Kh3 {[%clk 0:00:03.7]}
51... Ke5 {[%clk 0:00:08.8]} 52. Ra5+ {[%clk 0:00:04.2]} 52... Rd5 {[%clk
0:00:09]} 53. Ra6 {[%clk 0:00:04.7]} 53... e3 {[%clk 0:00:09]} 54. Kg3 {[%clk
0:00:04.7]} 54... f5 {[%clk 0:00:07.2]} 55. Kf3 {[%clk 0:00:05]} 55... f4 {[%clk
0:00:06.8]} 56. Ra4 {[%clk 0:00:05.2]} 56... Rd1 {[%clk 0:00:06.2]} 57. Re4+
{[%clk 0:00:05.3]} 57... Kd5 {[%clk 0:00:05.5]} 58. Re8 {[%clk 0:00:03.3]} 58...
Rf1+ {[%clk 0:00:05.1]} 59. Ke2 {[%clk 0:00:03.4]} 59... Rf2+ {[%clk 0:00:05.5]}
60. Ke1 {[%clk 0:00:04.1]} 60... Kd4 {[%clk 0:00:05.7]} 61. Rd8+ {[%clk
0:00:04]} 61... Ke4 {[%clk 0:00:06]} 62. Rg8 {[%clk 0:00:04.4]} 62... Kf3 {[%clk
0:00:06.2]} 63. Rxg6 {[%clk 0:00:04.7]} 63... Rh2 {[%clk 0:00:06.6]} 64. Rg1
{[%clk 0:00:05]} 64... Rxh4 {[%clk 0:00:06.5]} 65. Rf1+ {[%clk 0:00:05.3]} 65...
Ke4 {[%clk 0:00:07]} 66. Rg1 {[%clk 0:00:04.3]} 66... f3 {[%clk 0:00:07.5]} 67.
Kf1 {[%clk 0:00:03.7]} 67... Rg4 {[%clk 0:00:07.2]} 68. Rh1 {[%clk 0:00:04.1]}
68... h4 {[%clk 0:00:07.7]} 69. Rh3 {[%clk 0:00:03.8]} 69... Kf4 {[%clk
0:00:07.8]} 70. Rh1 {[%clk 0:00:03.4]} 70... f2 {[%clk 0:00:07.9]} 71. Ke2
{[%clk 0:00:03.2]} 71... Rg1 {[%clk 0:00:07.4]} 72. Rxh4+ {[%clk 0:00:03.9]}
72... Kg5 {[%clk 0:00:07.8]} 73. Kxe3 {[%clk 0:00:02.4]} 73... f1=Q {[%clk
0:00:07]} 74. Re4 {[%clk 0:00:02.3]} 74... Qe1+ {[%clk 0:00:06.4]} 75. Kd4
{[%clk 0:00:02.6]} 75... Qxe4+ {[%clk 0:00:07.1]} 76. Kxe4 {[%clk 0:00:03.5]}
76... Rg4+ {[%clk 0:00:07.4]} 77. Kf3 {[%clk 0:00:04.4]} 77... Rf4+ {[%clk
0:00:07.8]} 78. Ke3 {[%clk 0:00:05]} 78... Kf5 {[%clk 0:00:08.2]} 79. Kd3 {[%clk
0:00:05.9]} 79... Ke5 {[%clk 0:00:08.6]} 80. Ke3 {[%clk 0:00:06.8]} 80... Rf5
{[%clk 0:00:09.1]} 81. Kd3 {[%clk 0:00:07.7]} 81... Rf3+ {[%clk 0:00:09.2]} 82.
Kc4 {[%clk 0:00:08.6]} 82... Re3 {[%clk 0:00:09.6]} 83. Kc5 {[%clk 0:00:09.5]}
83... Rc3+ {[%clk 0:00:09.8]} 84. Kb4 {[%clk 0:00:10.1]} 84... Kd4 {[%clk
0:00:10.2]} 85. Kb5 {[%clk 0:00:10.6]} 85... Rc2 {[%clk 0:00:10.8]} 86. Kb6
{[%clk 0:00:10.6]} 86... Rc1 {[%clk 0:00:11.2]} 87. Kb5 {[%clk 0:00:11.4]} 87...
Rc2 {[%clk 0:00:11.4]} 88. Kb4 {[%clk 0:00:11.8]} 88... Kd3 {[%clk 0:00:11.5]}
89. Kb3 {[%clk 0:00:12.7]} 89... Rc8 {[%clk 0:00:11.4]} 90. Kb4 {[%clk
0:00:13.2]} 90... Kd4 {[%clk 0:00:11.9]} 91. Kb5 {[%clk 0:00:13.8]} 91... Kd5
{[%clk 0:00:12.4]} 92. Kb6 {[%clk 0:00:14]} 92... Rc1 {[%clk 0:00:12.5]} 93. Kb5
{[%clk 0:00:14.5]} 93... Rb1+ {[%clk 0:00:12.7]} 94. Ka4 {[%clk 0:00:15]} 94...
Kc5 {[%clk 0:00:13]} 95. Ka3 {[%clk 0:00:15.9]} 95... Rb8 {[%clk 0:00:12.9]} 96.
Ka2 {[%clk 0:00:16.8]} 96... Rb7 {[%clk 0:00:13.4]} 97. Ka1 {[%clk 0:00:17.7]}
97... Rb6 {[%clk 0:00:13.6]} 98. Ka2 {[%clk 0:00:18.6]} 98... Kc4 {[%clk
0:00:14]} 99. Ka3 {[%clk 0:00:19.5]} 99... Rb7 {[%clk 0:00:14.2]} 100. Ka2
{[%clk 0:00:19.6]} 100... Kc3 {[%clk 0:00:14.1]} 101. Ka3 {[%clk 0:00:20.5]}
101... Ra7# {[%clk 0:00:13.9]} 0-1

[Event "Late-Titled-Tuesday-Blitz-April-23-2024"]
[Site "Chess.com"]
[Date "2024.04.23"]
[Round "3"]
[White "MKlose11"]
[Black "IndianSchoolOfSuffering"]
[Result "1-0"]
[WhiteElo "2601"]
[BlackElo "2410"]
[TimeControl "180+1"]
[EndTime "14:31:39 PDT"]
[Termination "MKlose11 won on time"]

1. e4 {[%clk 0:02:53.5]} 1... e5 {[%clk 0:02:57.3]} 2. Nf3 {[%clk 0:02:52.6]}
2... Nc6 {[%clk 0:02:57.9]} 3. d4 {[%clk 0:02:53.5]} 3... exd4 {[%clk
0:02:56.2]} 4. Bc4 {[%clk 0:02:54]} 4... Nf6 {[%clk 0:02:55.4]} 5. O-O {[%clk
0:02:49.8]} 5... Nxe4 {[%clk 0:02:53.6]} 6. Re1 {[%clk 0:02:50]} 6... d5 {[%clk
0:02:53.4]} 7. Bxd5 {[%clk 0:02:50.4]} 7... Qxd5 {[%clk 0:02:52.9]} 8. Nc3
{[%clk 0:02:50.6]} 8... Qa5 {[%clk 0:02:48.4]} 9. Nxe4 {[%clk 0:02:49.2]} 9...
Be6 {[%clk 0:02:44.8]} 10. Neg5 {[%clk 0:02:49.3]} 10... O-O-O {[%clk
0:02:27.7]} 11. Nxe6 {[%clk 0:02:48.1]} 11... fxe6 {[%clk 0:02:27.6]} 12. Rxe6
{[%clk 0:02:49]} 12... Qd5 {[%clk 0:02:26.8]} 13. Qe2 {[%clk 0:02:48.9]} 13...
d3 {[%clk 0:02:23.2]} 14. cxd3 {[%clk 0:02:45.2]} 14... Qxd3 {[%clk 0:02:22.9]}
15. Bg5 {[%clk 0:02:45.8]} 15... Qxe2 {[%clk 0:02:01.6]} 16. Rxe2 {[%clk
0:02:44.7]} 16... Bd6 {[%clk 0:01:38.2]} 17. Bxd8 {[%clk 0:02:43]} 17... Rxd8
{[%clk 0:01:37.9]} 18. Kf1 {[%clk 0:02:41.7]} 18... h6 {[%clk 0:01:37.8]} 19.
Rd1 {[%clk 0:02:40.3]} 19... Rf8 {[%clk 0:01:35.7]} 20. Nd4 {[%clk 0:02:25.7]}
20... Nxd4 {[%clk 0:01:31.7]} 21. Rxd4 {[%clk 0:02:25.4]} 21... b6 {[%clk
0:01:02.1]} 22. g3 {[%clk 0:02:23.3]} 22... a5 {[%clk 0:01:01]} 23. Kg2 {[%clk
0:02:18.3]} 23... Bc5 {[%clk 0:00:59.4]} 24. Rd5 {[%clk 0:02:15.5]} 24... Rf7
{[%clk 0:00:58.6]} 25. f4 {[%clk 0:02:15.6]} 25... Kb7 {[%clk 0:00:54.5]} 26.
Kf3 {[%clk 0:02:13.5]} 26... Kc6 {[%clk 0:00:53.9]} 27. Rde5 {[%clk 0:02:12.4]}
27... Rd7 {[%clk 0:00:51.2]} 28. Re6+ {[%clk 0:02:09.9]} 28... Kb5 {[%clk
0:00:47.9]} 29. Kg4 {[%clk 0:02:10.2]} 29... a4 {[%clk 0:00:43.7]} 30. Kh5
{[%clk 0:02:09.5]} 30... a3 {[%clk 0:00:41.4]} 31. bxa3 {[%clk 0:02:04.4]} 31...
Bxa3 {[%clk 0:00:40.4]} 32. Kg6 {[%clk 0:02:04.4]} 32... Bc5 {[%clk 0:00:37.7]}
33. f5 {[%clk 0:02:01.2]} 33... Kc4 {[%clk 0:00:33.9]} 34. f6 {[%clk 0:01:52.4]}
34... gxf6 {[%clk 0:00:33.7]} 35. Kxh6 {[%clk 0:01:52.8]} 35... Bd4 {[%clk
0:00:33.5]} 36. h4 {[%clk 0:01:50.1]} 36... b5 {[%clk 0:00:33.1]} 37. h5 {[%clk
0:01:49.1]} 37... c5 {[%clk 0:00:32.6]} 38. Kg6 {[%clk 0:01:49.4]} 38... Rd5
{[%clk 0:00:31.5]} 39. Rh2 {[%clk 0:01:38.6]} 39... Rg5+ {[%clk 0:00:30.7]} 40.
Kf7 {[%clk 0:01:38.8]} 40... Rxg3 {[%clk 0:00:29.5]} 41. h6 {[%clk 0:01:36.9]}
41... f5 {[%clk 0:00:26]} 42. h7 {[%clk 0:01:05.7]} 42... Rg7+ {[%clk
0:00:23.5]} 43. Kf8 {[%clk 0:01:06]} 43... Ra7 {[%clk 0:00:21.6]} 44. Rh4 {[%clk
0:00:55.8]} 44... Kd5 {[%clk 0:00:19.7]} 45. Rxd4+ {[%clk 0:00:47.2]} 45... cxd4
{[%clk 0:00:18.8]} 46. h8=Q {[%clk 0:00:47.4]} 46... Kxe6 {[%clk 0:00:15]} 47.
Qxd4 {[%clk 0:00:47]} 47... Rd7 {[%clk 0:00:12.5]} 48. Qc5 {[%clk 0:00:39.6]}
48... Rd5 {[%clk 0:00:10.5]} 49. Qc6+ {[%clk 0:00:39.8]} 49... Ke5 {[%clk
0:00:10.6]} 50. Kg7 {[%clk 0:00:34.3]} 50... f4 {[%clk 0:00:10]} 51. Qc2 {[%clk
0:00:21.8]} 51... f3 {[%clk 0:00:08]} 52. Kg6 {[%clk 0:00:20.5]} 52... Kf4
{[%clk 0:00:07]} 53. Qc1+ {[%clk 0:00:20.2]} 53... Ke4 {[%clk 0:00:06.6]} 54.
Qe1+ {[%clk 0:00:18.8]} 54... Kf4 {[%clk 0:00:06.4]} 55. Qf2 {[%clk 0:00:16.4]}
55... Re5 {[%clk 0:00:05.6]} 56. a3 {[%clk 0:00:12.3]} 56... Rg5+ {[%clk
0:00:05.6]} 57. Kf6 {[%clk 0:00:12.1]} 57... Rf5+ {[%clk 0:00:05.9]} 58. Ke6
{[%clk 0:00:12.6]} 58... Re5+ {[%clk 0:00:06.5]} 59. Kd6 {[%clk 0:00:12.9]}
59... Re2 {[%clk 0:00:07.1]} 60. Qd4+ {[%clk 0:00:12.2]} 60... Kg3 {[%clk
0:00:07.1]} 61. Qg7+ {[%clk 0:00:10.4]} 61... Kh2 {[%clk 0:00:06.5]} 62. Qh6+
{[%clk 0:00:10.6]} 62... Kg2 {[%clk 0:00:07]} 63. Qg5+ {[%clk 0:00:11]} 63...
Kf1 {[%clk 0:00:06.9]} 64. Qxb5 {[%clk 0:00:10.8]} 64... f2 {[%clk 0:00:06.7]}
65. a4 {[%clk 0:00:10.5]} 65... Ke1 {[%clk 0:00:05.9]} 66. Qb1+ {[%clk
0:00:10.2]} 66... Kd2 {[%clk 0:00:06.4]} 67. Qb2+ {[%clk 0:00:10]} 67... Ke3
{[%clk 0:00:06.9]} 68. Qc1+ {[%clk 0:00:09.1]} 68... Kf3 {[%clk 0:00:06.8]} 69.
Qd1 {[%clk 0:00:08.7]} 69... Ke3 {[%clk 0:00:06.9]} 70. Qc1+ {[%clk 0:00:08.2]}
70... Kf3 {[%clk 0:00:06.8]} 71. a5 {[%clk 0:00:08.6]} 71... Re1 {[%clk
0:00:06.3]} 72. Qc6+ {[%clk 0:00:08.7]} 72... Kg3 {[%clk 0:00:06]} 73. Qc3+
{[%clk 0:00:05.5]} 73... Kg2 {[%clk 0:00:05.3]} 74. Qg7+ {[%clk 0:00:05.3]}
74... Kh2 {[%clk 0:00:04.5]} 75. Qh6+ {[%clk 0:00:05.7]} 75... Kg1 {[%clk
0:00:04.7]} 76. Qg5+ {[%clk 0:00:06.2]} 76... Kh1 {[%clk 0:00:05.2]} 77. Qh4+
{[%clk 0:00:06.5]} 77... Kg1 {[%clk 0:00:05.6]} 78. Qg3+ {[%clk 0:00:06.6]}
78... Kf1 {[%clk 0:00:04.6]} 79. a6 {[%clk 0:00:06.7]} 79... Re2 {[%clk
0:00:03.1]} 80. Qc3 {[%clk 0:00:03.8]} 80... Kg2 {[%clk 0:00:02.6]} 81. Qg7+
{[%clk 0:00:03.7]} 81... Kh2 {[%clk 0:00:02.6]} 82. Qh6+ {[%clk 0:00:03.8]}
82... Kg3 {[%clk 0:00:03]} 83. Qg5+ {[%clk 0:00:04.3]} 83... Kf3 {[%clk
0:00:03.4]} 84. Qh5+ {[%clk 0:00:04.7]} 84... Ke3 {[%clk 0:00:03.8]} 85. a7
{[%clk 0:00:04.7]} 85... f1=Q {[%clk 0:00:03.5]} 86. a8=Q {[%clk 0:00:04.9]}
86... Qf4+ {[%clk 0:00:03.4]} 87. Qe5+ {[%clk 0:00:04.3]} 1-0